bitfinex/quotes_SOLUSD_20251007
["timestamp","ask_amount","ask_price","bid_price","bid_amount"]
[1759851865659,0.7,222.26,222.11,0.71]
[1759851865867,13.50773317,222.31,222.11,0.71]
[1759851866064,7.8036326,222.21,222.11,0.71]
[1759851866287,0.7,222.3,222.11,0.71]
[1759851866502,7.8036326,222.22,222.11,0.71]
[1759851866978,7.8036326,222.22,222.12,4.50207095]
[1759851867286,7.8036326,222.22,222.13,0.69]
[1759851867485,20.8,222.28,222.14,35.14]
[1759851867690,11.56763468,222.59,222.14,35.14]
[1759851867691,7.8036326,222.33,222.18,20.8]
[1759851867892,20.8,222.3,222.19,0.69]
[1759851868189,7.8036326,222.35,222.19,0.69]
[1759851868489,8.4836326,222.37,222.19,0.69]
[1759851868968,7.8036326,222.34,222.2,35.18]
[1759851869167,7.8036326,222.34,222.21,0.69]
[1759851869372,29.2836326,222.35,222.21,0.69]
[1759851869571,0.68,222.38,222.22,35.18]
[1759851869775,0.68,222.38,222.23,0.69]
[1759851870091,7.8036326,222.36,222.24,35.16]
[1759851870393,20.8,222.35,222.25,0.69]
[1759851870578,7.8036326,222.34,222.26,35.14]
[1759851870775,0.68,222.35,222.19,15.75209974]
[1759851870776,0.68,222.35,222.27,35.14]
[1759851870983,20.8,222.35,222.27,35.83]
[1759851871188,20.8,222.34,222.27,35.83]
[1759851871695,12.30067341,222.37,222.27,35.83]
[1759851871867,20.8,222.34,222.27,35.83]
[1759851872072,20.8,222.35,222.27,0.69]
[1759851872384,28.6036326,222.34,222.28,35.12]
[1759851872700,25.29704081,222.37,222.28,35.12]
[1759851872871,7.8036326,222.36,222.28,35.12]
[1759851873197,20.8,222.35,222.28,35.81]
[1759851873375,7.8036326,222.37,222.28,35.81]
[1759851873697,20.8,222.4,222.28,35.81]
[1759851873880,7.8036326,222.37,222.19,20.8]
[1759851874082,7.8036326,222.28,222.15,35.75]
[1759851874385,20.8,222.29,222.15,35.75]
[1759851874386,8.4836326,222.27,222.2,35.08]
[1759851874566,28.6036326,222.3,222.2,35.77]
[1759851875171,20.8,222.3,222.2,39.58039394]
[1759851875397,7.8036326,222.4,222.21,0.69]
[1759851875398,24.74754711,222.37,222.21,0.69]
[1759851875679,7.8036326,222.35,222.21,0.69]
[1759851876084,0.68,222.39,222.23,20.8]
[1759851876283,7.8036326,222.37,222.24,0.69]
[1759851877393,7.8036326,222.37,222.25,4.49943757]
[1759851877595,7.8036326,222.37,222.26,0.69]
[1759851878093,5.17663162,222.39,222.27,35.14]
[1759851878278,0.68,222.39,222.28,0.69]
[1759851878793,8.4836326,222.39,222.28,0.69]
[1759851879984,7.8036326,222.39,222.29,4.49862791]
[1759851880296,12.29883272,222.46,222.33,20.8]
[1759851880598,0.67,222.45,222.34,0.72]
[1759851880792,0.67,222.45,222.31,0.72]
[1759851881093,7.8036326,222.44,222.35,35.1]
[1759851881277,21.47,222.43,222.29,4.49862791]
[1759851881468,7.8036326,222.4,222.29,4.49862791]
[1759851881673,0.67,222.4,222.3,31.64]
[1759851882093,0.67,222.4,222.31,4.4982232]
[1759851882291,12.30005265,222.4,222.27,0.72]
[1759851882583,8.4736326,222.39,222.28,35.08]
[1759851882794,7.8036326,222.38,222.28,35.08]
[1759851882984,0.67,222.39,222.29,0.72]
[1759851883389,8.4736326,222.39,222.29,0.72]
[1759851883717,8.4736326,222.39,222.3,35.02]
[1759851884208,5.16660686,222.39,222.29,5.21854653]
[1759851884584,8.4736326,222.39,222.3,35.02]
[1759851884986,0.67,222.39,222.29,4.49854653]
[1759851885180,0.67,222.39,222.31,35.02]
[1759851885181,20.8,222.39,222.31,35.02]
[1759851885381,7.8036326,222.41,222.31,35.02]
[1759851885800,5.1660036,222.42,222.31,35.02]
[1759851886005,7.8036326,222.39,222.31,35.02]
[1759851886436,7.8036326,222.37,222.32,35.02]
[1759851886716,7.8036326,222.35,222.33,35.02]
[1759851887016,7.8036326,222.35,222.24,0.72]
[1759851887017,0.67,222.34,222.24,0.72]
[1759851887181,7.8036326,222.32,222.25,35.02]
[1759851887502,0.67,222.34,222.25,35.02]
[1759851887703,7.8036326,222.33,222.26,0.72]
[1759851889100,21.47,222.36,222.26,0.72]
[1759851889101,0.67,222.36,222.26,0.72]
[1759851889301,7.8036326,222.36,222.26,5.21920811]
[1759851890713,7.8036326,222.35,222.26,0.72]
[1759851891024,7.8036326,222.33,222.26,0.72]
[1759851891211,7.8036326,222.33,222.27,35.02]
[1759851891521,7.8036326,222.28,222.21,35.78]
[1759851891699,7.8036326,222.28,222.22,35.02]
[1759851893106,3.58086506,222.29,222.22,35.02]
[1759851893310,20.8,222.3,222.23,0.72]
[1759851893524,2.91457429,222.29,222.22,35.02]
[1759851893708,10.71820689,222.29,222.22,35.02]
[1759851894109,2.91457429,222.29,222.22,35.74]
[1759851894326,2.91667803,222.31,222.22,40.24001414]
[1759851894631,20.8,222.3,222.23,0.72]
[1759851894925,33.10171771,222.32,222.23,0.72]
[1759851895297,2.91922711,222.31,222.23,0.72]
[1759851896204,20.8,222.32,222.23,5.21976832]
[1759851896410,28.6036326,222.32,222.23,5.21976832]
[1759851896910,2.9202971,222.31,222.23,5.21976832]
[1759851897212,7.8036326,222.3,222.23,0.72]
[1759851898134,0.7,222.29,222.22,35.02]
[1759851898534,7.8036326,222.3,222.23,35.02]
[1759851898703,3.6202971,222.31,222.23,35.02]
[1759851898909,2.9202971,222.31,222.24,0.67]
[1759851899118,28.6036326,222.32,222.24,0.67]
[1759851899924,4.49721298,222.36,222.24,0.67]
[1759851900228,20.8,222.35,222.24,0.67]
[1759851900409,7.8036326,222.3,222.21,35.06]
[1759851900609,7.8036326,222.26,222.21,35.06]
[1759851900807,5.19944925,222.25,222.21,35.06]
[1759851901030,0.7,222.24,222.22,35.02]
[1759851901334,0.7,222.23,222.22,35.02]
[1759851901926,24.4251743,222.23,222.21,35.06]
[1759851902120,24.4251743,222.22,222.11,0.67]
[1759851902433,2.9251743,222.21,222.12,35.02]
[1759851902639,0.7,222.2,222.12,35.02]
[1759851903517,8.5036326,222.19,222.13,35.02]
[1759851903726,0.7,222.19,222.13,35.02]
[1759851903953,12.30413107,222.2,222.08,0.67]
[1759851904235,7.8036326,222.16,222.09,35.02]
[1759851904442,0.7,222.16,222.09,35.02]
[1759851904933,8.5036326,222.16,222.09,35.02]
[1759851905248,8.5036326,222.15,222.09,35.02]
[1759851905448,2.91744634,222.16,222.09,35.02]
[1759851905652,0.7,222.14,222.09,35.02]
[1759851905975,7.8036326,222.12,222.1,35.02]
[1759851906143,0.7,222.16,222.1,35.02]
[1759851906465,20.8,222.18,222.1,35.02]
[1759851906957,0.7,222.19,222.1,35.02]
[1759851907329,7.8036326,222.21,222.11,0.67]
[1759851907550,0.7,222.21,222.11,0.67]
[1759851907984,0.7,222.21,222.1,35.02]
[1759851908277,0.7,222.2,222.1,35.02]
[1759851908463,0.7,222.2,222.1,35.69]
[1759851908641,8.5036326,222.2,222.1,35.69]
[1759851908843,7.8036326,222.14,222.06,35.06]
[1759851909042,7.8036326,222.14,222.07,35.02]
[1759851909242,0.7,222.13,222.07,35.02]
[1759851909436,0.7,222.16,222.07,35.02]
[1759851909856,21.5,222.15,222.07,35.02]
[1759851910060,29.3036326,222.15,222.07,35.02]
[1759851910274,0.7,222.15,222.07,35.02]
[1759851910477,7.8036326,222.14,222.07,35.02]
[1759851911072,0.7,222.13,222.08,35.02]
[1759851911242,8.5036326,222.12,222.08,35.02]
[1759851911586,21.5,222.15,222.08,35.02]
[1759851911751,21.5,222.15,222.09,0.67]
[1759851911752,20.8,222.15,222.09,0.67]
[1759851911952,0.7,222.2,222.09,0.67]
[1759851912177,20.8,222.16,222.09,0.67]
[1759851912388,20.8,222.16,222.08,35.02]
[1759851912553,7.8036326,222.15,222.08,35.02]
[1759851912754,20.8,222.17,222.09,0.67]
[1759851912954,20.8,222.18,222.09,5.17254585]
[1759851913373,4.91539878,222.17,222.09,0.67]
[1759851913556,0.7,222.22,222.09,5.17263253]
[1759851913778,20.8,222.19,222.1,0.67]
[1759851914088,25.71539878,222.19,222.1,0.67]
[1759851914455,0.7,222.18,222.1,0.67]
[1759851914682,4.91539878,222.15,222.06,35.73]
[1759851914889,4.91539878,222.15,222.07,35.69]
[1759851915070,4.91539878,222.17,222.07,40.19300785]
[1759851915276,0.7,222.18,222.07,40.19300785]
[1759851915277,0.7,222.18,222.08,0.67]
[1759851915464,24.71927729,222.26,222.08,0.67]
[1759851915675,20.8,222.21,222.08,0.67]
[1759851915986,25.71539878,222.21,222.08,1.12028818]
[1759851916185,0.7,222.2,222.09,0.67]
[1759851916525,0.7,222.23,222.09,0.67]
[1759851916666,4.91539878,222.21,222.09,0.67]
[1759851916867,4.91539878,222.19,222.09,0.67]
[1759851917057,4.91539878,222.15,222.07,35.69]
[1759851917378,4.91539878,222.15,222.07,35.02]
[1759851917379,4.91539878,222.12,222.07,35.02]
[1759851917577,0.7,222.11,222.07,35.02]
[1759851917970,0.7,222.1,222.07,35.02]
[1759851918168,0.7,222.13,222.07,35.02]
[1759851918382,20.8,222.16,222.07,35.02]
[1759851918383,0.7,222.16,222.07,35.02]
[1759851918592,4.49943757,222.25,222.08,0.67]
[1759851918769,0.7,222.17,222.08,0.67]
[1759851918963,4.91539878,222.16,222.07,35.02]
[1759851919283,0.7,222.15,222.07,35.02]
[1759851919898,20.8,222.16,222.07,35.02]
[1759851920109,0.7,222.26,222.1,20.8]
[1759851920299,0.7,222.26,222.11,1.12022736]
[1759851920597,5.61539878,222.26,222.12,35.69]
[1759851920804,0.7,222.25,222.12,35.02]
[1759851921009,0.7,222.25,222.13,5.17172007]
[1759851921303,0.7,222.24,222.12,40.19204485]
[1759851921483,0.7,222.24,222.13,0.67]
[1759851921801,4.91539878,222.23,222.13,0.67]
[1759851922098,0.7,222.22,222.12,35.02]
[1759851922278,0.7,222.21,222.12,35.02]
[1759851922481,4.91539878,222.19,222.12,35.02]
[1759851922692,0.7,222.21,222.12,35.02]
[1759851922919,4.91539878,222.2,222.12,35.02]
[1759851923096,4.91539878,222.2,222.13,0.67]
[1759851923293,20.8,222.19,222.13,0.67]
[1759851924013,20.8,222.21,222.13,0.67]
[1759851924406,25.30034702,222.21,222.13,0.67]
[1759851924697,0.7,222.2,222.14,35.0]
[1759851924895,4.91539878,222.18,222.14,35.0]
[1759851925101,20.8,222.2,222.14,35.0]
[1759851925279,0.7,222.21,222.14,35.0]
[1759851926010,20.8,222.22,222.15,0.67]
[1759851926178,25.71539878,222.22,222.15,0.67]
[1759851926573,0.7,222.24,222.15,0.67]
[1759851926807,20.8,222.23,222.15,0.67]
[1759851927186,25.71539878,222.23,222.15,0.67]
[1759851927583,0.7,222.24,222.15,0.67]
[1759851927797,4.91539878,222.23,222.15,0.67]
[1759851927999,4.91539878,222.21,222.14,35.0]
[1759851929125,4.91539878,222.19,222.14,35.0]
[1759851929323,0.72,222.18,222.14,35.0]
[1759851929712,4.50042303,222.21,222.14,35.0]
[1759851929915,20.8,222.19,222.14,35.0]
[1759851930224,0.5,222.23,222.15,35.72]
[1759851930404,0.72,222.25,222.16,35.0]
[1759851930720,25.71539878,222.24,222.16,35.0]
[1759851931026,0.72,222.23,222.16,35.0]
[1759851931223,4.91539878,222.3,222.16,35.0]
[1759851931224,7.10358169,222.4,222.17,0.72]
[1759851931425,22.47240366,222.5,222.17,0.72]
[1759851931426,0.72,222.32,222.17,0.72]
[1759851931618,25.71539878,222.29,222.17,0.72]
[1759851931923,4.91539878,222.29,222.17,0.72]
[1759851932495,20.8,222.31,222.17,0.72]
[1759851932726,4.91539878,222.29,222.17,0.72]
[1759851933123,4.49853948,222.3,222.18,4.50085516]
[1759851933428,4.49853948,222.3,222.19,0.72]
[1759851933720,5.63539878,222.29,222.19,0.72]
[1759851934028,20.8,222.31,222.19,0.72]
[1759851934223,0.72,222.4,222.2,0.450045]
[1759851934414,4.49599856,222.42,222.21,0.72]
[1759851934415,0.72,222.38,222.21,0.72]
[1759851934618,4.91539878,222.35,222.21,0.72]
[1759851934914,4.91539878,222.3,222.18,0.72]
[1759851935112,0.72,222.34,222.18,0.72]
[1759851935113,0.72,222.29,222.18,0.72]
[1759851935297,5.21865524,222.29,222.18,0.72]
[1759851935505,0.72,222.29,222.18,0.72]
[1759851935699,20.8,222.31,222.18,5.22078595]
[1759851935899,20.8,222.31,222.19,0.72]
[1759851935900,0.72,222.3,222.19,0.72]
[1759851937109,25.29911229,222.27,222.19,0.72]
[1759851937502,0.72,222.26,222.16,35.72]
[1759851938024,0.72,222.27,222.17,0.72]
[1759851938226,20.8,222.26,222.17,0.72]
[1759851938427,0.72,222.25,222.13,0.7]
[1759851938601,4.91539878,222.24,222.18,34.98]
[1759851938807,0.72,222.23,222.19,34.96]
[1759851939025,0.72,222.23,222.11,4.50208458]
[1759851939026,0.72,222.23,222.2,34.96]
[1759851939326,0.72,222.22,222.2,34.96]
[1759851939537,3.64810887,222.33,222.2,34.96]
[1759851939745,0.72,222.29,222.21,0.7]
[1759851940308,20.8,222.27,222.2,34.96]
[1759851940504,0.72,222.26,222.2,34.96]
[1759851941205,8.13632635,222.28,222.2,34.96]
[1759851941424,0.72,222.27,222.2,34.96]
[1759851941603,20.8,222.25,222.2,34.96]
[1759851941806,21.52,222.25,222.2,34.96]
[1759851942033,20.8,222.26,222.2,34.96]
[1759851942219,20.8,222.25,222.2,34.96]
[1759851942417,21.52,222.25,222.2,34.96]
[1759851942721,0.72,222.29,222.21,0.7]
[1759851943612,25.29851244,222.3,222.21,0.7]
[1759851943812,20.8,222.29,222.21,0.7]
[1759851944241,21.52,222.29,222.21,0.7]
[1759851944545,21.52,222.29,222.2,34.96]
[1759851944546,0.72,222.29,222.2,34.96]
[1759851944746,20.8,222.27,222.21,34.96]
[1759851944912,0.72,222.26,222.21,34.96]
[1759851945109,20.8,222.27,222.21,35.66]
[1759851945411,4.36810887,222.38,222.22,0.7]
[1759851945615,0.72,222.37,222.22,0.7]
[1759851945842,3.63773263,222.37,222.22,0.7]
[1759851946025,0.72,222.37,222.22,0.7]
[1759851946343,20.8,222.37,222.23,0.44998425]
[1759851946579,5.21644752,222.4,222.24,21.5]
[1759851946710,5.21654357,222.4,222.25,0.7]
[1759851947112,4.91539878,222.39,222.25,0.7]
[1759851947419,0.72,222.41,222.28,20.8]
[1759851947620,2.91624409,222.45,222.29,35.64]
[1759851947823,0.72,222.46,222.3,0.7]
[1759851948024,0.72,222.45,222.3,0.7]
[1759851948246,0.72,222.45,222.27,0.7]
[1759851948247,20.8,222.42,222.27,0.7]
[1759851948543,0.72,222.41,222.31,34.94]
[1759851949341,20.8,222.4,222.31,39.43821877]
[1759851949643,20.8,222.4,222.32,0.7]
[1759851949821,26.01621076,222.41,222.32,0.7]
[1759851950141,0.72,222.41,222.32,0.7]
[1759851950348,4.49579134,222.44,222.32,0.7]
[1759851950560,25.29579134,222.44,222.32,0.7]
[1759851950741,26.01579134,222.44,222.32,0.7]
[1759851951260,0.72,222.44,222.33,4.49781855]
[1759851951431,0.72,222.44,222.34,34.94]
[1759851951632,21.52,222.43,222.34,34.94]
[1759851951930,0.72,222.42,222.34,34.94]
[1759851952234,25.71539878,222.43,222.34,34.94]
[1759851952448,0.72,222.41,222.34,34.94]
[1759851953362,5.21620938,222.41,222.34,34.94]
[1759851953663,0.72,222.41,222.34,34.94]
[1759851954244,0.72,222.46,222.35,0.7]
[1759851954458,20.8,222.45,222.35,0.7]
[1759851955134,0.72,222.44,222.35,0.7]
[1759851955328,0.72,222.47,222.35,0.7]
[1759851955529,20.8,222.46,222.35,5.19740803]
[1759851955753,20.8,222.46,222.36,0.7]
[1759851956060,0.72,222.45,222.37,34.92]
[1759851956232,0.72,222.44,222.38,34.92]
[1759851956434,0.72,222.43,222.38,34.92]
[1759851956666,0.69,222.42,222.38,34.92]
[1759851957830,0.69,222.46,222.39,0.69]
[1759851958458,0.69,222.46,222.38,34.92]
[1759851958758,30.21047047,222.47,222.38,34.92]
[1759851958759,0.69,222.45,222.38,34.92]
[1759851959647,5.18546025,222.45,222.38,34.92]
[1759851959950,0.69,222.45,222.38,34.92]
[1759851960260,4.91539878,222.46,222.38,34.92]
[1759851960447,20.8,222.43,222.31,35.06]
[1759851960648,25.71539878,222.41,222.32,34.9]
[1759851960947,0.69,222.4,222.32,34.9]
[1759851961341,4.49654535,222.4,222.32,34.9]
[1759851961549,20.8,222.36,222.32,34.9]
[1759851961871,0.69,222.35,222.33,34.9]
[1759851962539,0.69,222.34,222.33,34.9]
[1759851963679,10.10301504,222.34,222.33,34.9]
[1759851963880,0.69,222.34,222.33,34.9]
[1759851964945,0.69,222.4,222.33,35.59]
[1759851965158,0.69,222.4,222.33,34.9]
[1759851965463,25.29739879,222.36,222.33,34.9]
[1759851965648,0.69,222.35,222.33,34.9]
[1759851968065,5.38459386,222.49,222.43,34.88]
[1759851968265,20.8,222.46,222.43,34.88]
[1759851968763,21.49,222.45,222.36,0.69]
[1759851968946,21.49,222.45,222.37,34.88]
[1759851969548,4.49559431,222.44,222.37,34.88]
[1759851969746,20.8,222.44,222.37,34.88]
[1759851970362,0.69,222.45,222.37,34.88]
[1759851970363,0.69,222.43,222.37,34.88]
[1759851970544,0.69,222.42,222.32,0.69]
[1759851970743,0.69,222.42,222.33,34.86]
[1759851970959,21.33928377,222.45,222.34,0.69]
[1759851971157,4.49540444,222.45,222.34,0.69]
[1759851971361,25.29540444,222.45,222.34,0.69]
[1759851971568,25.29540444,222.45,222.34,5.18746791]
[1759851971763,0.2,222.49,222.37,20.8]
[1759851971970,4.69461638,222.49,222.38,0.69]
[1759851972267,0.2,222.49,222.38,1.13968072]
[1759851972453,0.2,222.49,222.39,0.69]
[1759851972659,0.2,222.49,222.4,34.86]
[1759851972842,0.2,222.49,222.41,0.69]
[1759851973775,4.69464154,222.49,222.41,0.69]
[1759851973962,0.89,222.49,222.38,0.69]
[1759851974162,5.38458502,222.49,222.39,28.0]
[1759851974868,4.69458502,222.49,222.39,28.0]
[1759851975077,4.69458502,222.49,222.4,0.69]
[1759851975297,7.80239757,222.47,222.4,0.69]
[1759851975577,7.80239757,222.45,222.39,28.0]
[1759851975782,8.49239757,222.46,222.39,28.0]
[1759851975977,0.69,222.46,222.39,28.0]
[1759851976150,7.80239757,222.45,222.39,28.0]
[1759851976465,7.80239757,222.43,222.4,34.86]
[1759851976668,7.80239757,222.41,222.4,34.86]
[1759851976969,7.80239757,222.41,222.21,3.66361299]
[1759851976970,20.8,222.38,222.23,0.69]
[1759851977172,7.80239757,222.32,222.24,22.2]
[1759851977352,7.80239757,222.31,222.24,22.2]
[1759851977552,5.18793397,222.33,222.24,22.2]
[1759851977747,7.80239757,222.28,222.24,22.2]
[1759851978047,7.80239757,222.31,222.24,22.2]
[1759851978480,0.69,222.32,222.24,22.2]
[1759851978950,7.80239757,222.3,222.24,22.2]
[1759851979760,11.24331295,222.36,222.24,22.2]
[1759851980076,0.2,222.49,222.24,22.2]
[1759851980077,0.69,222.47,222.27,20.8]
[1759851980282,7.80239757,222.43,222.28,0.69]
[1759851980454,0.69,222.47,222.28,0.69]
[1759851980655,7.80239757,222.48,222.28,1.13988303]
[1759851980865,7.80239757,222.48,222.29,0.69]
[1759851981055,0.2,222.49,222.3,0.44984255]
[1759851981254,8.00239757,222.49,222.31,0.69]
[1759851981478,0.2,222.49,222.35,20.8]
[1759851981690,0.2,222.49,222.36,16.43024104]
[1759851981856,0.2,222.49,222.39,20.8]
[1759851982055,0.2,222.49,222.4,34.84]
[1759851982355,0.2,222.49,222.43,20.8]
[1759851982573,0.2,222.49,222.44,0.44955943]
[1759851982762,0.2,222.49,222.45,0.69]
[1759851982977,0.2,222.49,222.43,0.69]
[1759851983157,8.00239757,222.49,222.43,0.69]
[1759851983474,0.2,222.49,222.43,0.69]
[1759851983677,0.69,222.62,222.43,25.98575076]
[1759851983887,7.80239757,222.58,222.47,20.8]
[1759851984068,7.80239757,222.54,222.48,34.84]
[1759851984254,0.69,222.53,222.49,34.84]
[1759851984458,0.69,222.52,222.49,34.84]
[1759851984767,7.80239757,222.5,222.49,34.84]
[1759851984970,8.49239757,222.5,222.44,35.06]
[1759851985263,0.69,222.53,222.45,34.84]
[1759851985468,7.80239757,222.52,222.45,34.84]
[1759851985653,5.1838628,222.53,222.45,34.84]
[1759851985855,7.80239757,222.5,222.45,34.84]
[1759851986180,0.69,222.53,222.45,35.53]
[1759851986479,0.68,222.56,222.45,35.53]
[1759851986675,7.80239757,222.52,222.45,35.53]
[1759851986871,0.68,222.55,222.45,35.53]
[1759851987080,7.80239757,222.52,222.45,35.53]
[1759851987455,20.8,222.6,222.46,0.68]
[1759851987658,7.80239757,222.57,222.46,0.68]
[1759851988181,7.80239757,222.55,222.46,0.68]
[1759851988557,0.68,222.58,222.46,0.68]
[1759851988761,7.80239757,222.56,222.46,5.17516072]
[1759851988982,7.80239757,222.56,222.46,4.49516072]
[1759851989282,0.68,222.61,222.47,0.68]
[1759851989482,2.92284967,222.65,222.49,20.8]
[1759851989656,8.00239757,222.66,222.51,4.49418003]
[1759851989855,8.00239757,222.66,222.52,35.5]
[1759851990074,8.00239757,222.66,222.53,0.68]
[1759851990686,4.69117043,222.66,222.53,0.68]
[1759851990869,7.80239757,222.65,222.53,0.68]
[1759851991077,8.48239757,222.65,222.53,0.68]
[1759851991283,0.68,222.65,222.53,0.68]
[1759851991680,0.2,222.66,222.54,4.49357418]
[1759851991867,0.2,222.66,222.55,0.68]
[1759851992067,0.2,222.66,222.57,20.8]
[1759851992282,0.2,222.66,222.58,35.5]
[1759851993787,0.2,222.66,222.58,39.99258561]
[1759851993990,0.88,222.66,222.58,34.82]
[1759851994189,7.80239757,222.63,222.58,34.82]
[1759851994393,0.68,222.63,222.58,34.82]
[1759851994570,0.88,222.66,222.58,34.82]
[1759851994767,0.2,222.66,222.59,0.68]
[1759851994978,7.80239757,222.65,222.58,34.82]
[1759851995190,0.88,222.66,222.58,34.82]
[1759851995481,5.37122291,222.66,222.58,34.82]
[1759851995702,4.49139903,222.65,222.58,34.82]
[1759851995880,12.2937966,222.65,222.58,34.82]
[1759851996074,0.68,222.64,222.58,34.82]
[1759851996273,4.49139903,222.65,222.58,34.82]
[1759851996476,0.2,222.66,222.58,35.5]
[1759851996802,25.49116863,222.66,222.58,35.5]
[1759851997093,0.2,222.66,222.58,39.99272372]
[1759851997268,0.2,222.66,222.59,0.68]
[1759851997662,0.68,222.65,222.54,20.8]
[1759851997865,0.68,222.65,222.44,62.57023143]
[1759851997866,20.8,222.63,222.49,0.68]
[1759851998069,0.68,222.62,222.5,34.8]
[1759851998301,0.68,222.62,222.51,0.71]
[1759851998594,15.91905403,222.66,222.51,0.71]
[1759851998595,8.52239757,222.65,222.51,0.71]
[1759851999001,0.72,222.65,222.51,0.71]
[1759851999166,21.52,222.65,222.51,0.71]
[1759851999366,29.32239757,222.65,222.51,0.71]
[1759851999564,29.32239757,222.65,222.53,20.8]
[1759851999789,26.01145824,222.65,222.54,0.71]
[1759851999969,33.81385581,222.65,222.54,0.71]
[1759852000176,26.01145824,222.65,222.54,0.71]
[1759852000577,33.81385581,222.65,222.54,0.71]
[1759852000776,26.01145824,222.65,222.54,0.71]
[1759852000975,33.81385581,222.65,222.54,0.71]
[1759852001377,26.01145824,222.65,222.54,0.71]
[1759852001669,26.01145824,222.65,222.5,34.8]
[1759852001670,7.80239757,222.59,222.5,34.8]
[1759852001865,0.72,222.58,222.5,34.8]
[1759852002087,8.52239757,222.58,222.5,34.8]
[1759852002609,7.80239757,222.56,222.5,34.8]
[1759852002893,0.72,222.55,222.5,34.8]
[1759852003199,7.80239757,222.53,222.5,34.8]
[1759852003405,0.72,222.55,222.5,34.8]
[1759852003576,7.80239757,222.56,222.5,34.8]
[1759852003895,7.80239757,222.51,222.5,34.8]
[1759852004096,0.72,222.51,222.5,34.8]
[1759852004302,7.80239757,222.53,222.5,34.8]
[1759852004473,0.72,222.53,222.5,34.8]
[1759852004675,0.72,222.52,222.5,34.8]
[1759852004882,20.8,222.56,222.5,34.8]
[1759852005177,0.72,222.58,222.5,39.29437022]
[1759852006085,8.52239757,222.61,222.5,39.29437022]
[1759852006301,7.80239757,222.6,222.5,39.29437022]
[1759852006484,20.8,222.63,222.5,34.8]
[1759852006485,8.52239757,222.59,222.5,34.8]
[1759852006811,7.80239757,222.58,222.5,34.8]
[1759852006987,20.8,222.53,222.45,0.71]
[1759852007308,20.8,222.53,222.46,34.78]
[1759852007479,0.72,222.57,222.46,34.78]
[1759852007797,0.72,222.57,222.47,4.49498808]
[1759852008018,0.72,222.62,222.48,0.71]
[1759852008303,5.21195939,222.62,222.49,20.8]
[1759852008495,5.21195939,222.62,222.5,0.71]
[1759852008878,0.72,222.62,222.5,0.71]
[1759852009082,20.8,222.6,222.5,0.71]
[1759852009621,5.21135777,222.65,222.5,21.51]
[1759852009911,20.8,222.64,222.51,0.71]
[1759852010081,7.80239757,222.63,222.52,34.78]
[1759852010690,0.72,222.62,222.52,34.78]